fUSD/lending_fUSD_20260409
["ID","MTS","AMOUNT","RATE_DAILY","PERIOD"]
[420135032,1775707843645,-6919.59,0.00013688,2]
[420135033,1775707843655,-969.23,0.00013688,2]
[420135034,1775707843664,-2633.42,0.00013688,2]
[420135035,1775707843675,-1000.0,0.00013697,2]
[420135036,1775707843685,-500.0,0.00013698,2]
[420135037,1775707843696,-500.0,0.00013698,2]
[420135038,1775707843706,-500.0,0.00013698,2]
[420135039,1775707843716,-500.0,0.00013698,2]
[420135040,1775707843727,-500.0,0.00013698,2]
[420135041,1775707843737,-500.0,0.00013698,2]
[420135042,1775707843747,-500.0,0.00013698,2]
[420135043,1775707843758,-500.0,0.00013698,2]
[420135044,1775707843768,-500.0,0.00013698,2]
[420135045,1775707843778,-500.0,0.00013698,2]
[420135046,1775707843788,-500.0,0.00013698,2]
[420135047,1775707843798,-500.0,0.00013698,2]
[420135048,1775707843809,-500.0,0.00013698,2]
[420135049,1775707843819,-500.0,0.00013698,2]
[420135050,1775707843829,-500.0,0.00013698,2]
[420135051,1775707843840,-500.0,0.00013698,2]
[420135052,1775707843850,-500.0,0.00013698,2]
[420135053,1775707843861,-500.0,0.00013698,2]
[420135054,1775707843872,-500.0,0.00013698,2]
[420135055,1775707843882,-500.0,0.00013698,2]
[420135056,1775707843892,-500.0,0.00013698,2]
[420135057,1775707843902,-500.0,0.00013698,2]
[420135058,1775707843912,-500.0,0.00013698,2]
[420135059,1775707843922,-500.0,0.00013698,2]
[420135060,1775707843932,-500.0,0.00013698,2]
[420135061,1775707843942,-500.0,0.00013698,2]
[420135062,1775707843952,-500.0,0.00013698,2]
[420135063,1775707843962,-500.0,0.00013698,2]
[420135064,1775707843972,-500.0,0.00013698,2]
[420135065,1775707843982,-500.0,0.00013698,2]
[420135066,1775707843992,-219.90601371,0.00013698,2]
[420135067,1775707844002,-500.0,0.00013698,2]
[420135068,1775707844013,-500.0,0.00013698,2]
[420135069,1775707844023,-500.0,0.00013698,2]
[420135070,1775707844033,-500.0,0.00013698,2]
[420135071,1775707844044,-500.0,0.00013698,2]
[420135072,1775707844054,-500.0,0.00013698,2]
[420135073,1775707844064,-500.0,0.00013698,2]
[420135074,1775707844074,-500.0,0.00013698,2]
[420135075,1775707844084,-500.0,0.00013698,2]
[420135076,1775707844095,-532.24925946,0.00013698,2]
[420135077,1775707844105,-500.0,0.00013698,2]
[420135078,1775707844115,-500.0,0.00013698,2]
[420135079,1775707844125,-500.0,0.00013698,2]
[420135080,1775707844135,-500.0,0.00013698,2]
[420135081,1775707844145,-500.0,0.00013698,2]
[420135082,1775707844155,-500.0,0.00013698,2]
[420135083,1775707844165,-500.0,0.00013698,2]
[420135084,1775707844175,-500.0,0.00013698,2]
[420135085,1775707844185,-500.0,0.00013698,2]
[420135086,1775707844195,-500.0,0.00013698,2]
[420135087,1775707844205,-500.0,0.00013698,2]
[420135088,1775707844214,-500.0,0.00013699,2]
[420135089,1775707844225,-500.0,0.00013699,2]
[420135090,1775707844235,-500.0,0.00013699,2]
[420135091,1775707844246,-500.0,0.00013699,2]
[420135092,1775707844256,-500.0,0.00013699,2]
[420135093,1775707844266,-500.0,0.00013699,2]
[420135094,1775707844276,-500.0,0.00013699,2]
[420135095,1775707844286,-3069.0,0.00013699,2]
[420135096,1775707844296,-150.0,0.00013699,2]
[420135097,1775707844306,-150.0,0.00013699,2]
[420135098,1775707844316,-200.0,0.00013699,2]
[420135099,1775707844326,-166.66,0.00013699,2]
[420135101,1775707844336,-853.48,0.00013699,2]
[420135103,1775707844345,-3577.2,0.00013699,2]
[420135104,1775707844355,-500.0,0.00013699,2]
[420135106,1775707844364,-189.29,0.00013699,2]
[420135108,1775707844374,-244.60403637,0.00013699,2]
[420135110,1775707844384,-200.0,0.00013699,2]
[420135112,1775707844394,-200.0,0.00013699,2]
[420135114,1775707844404,-151.0,0.00013699,2]
[420135116,1775707844414,-786.15,0.00013699,2]
[420135118,1775707844424,-986.05,0.00013699,2]
[420135120,1775707844434,-200.0,0.00013699,2]
[420135122,1775707844444,-2000.0,0.00013699,2]
[420135124,1775707844454,-367.0,0.00013699,3]
[420135126,1775707844464,-4185.88,0.000137,2]
[420135128,1775707844474,-4185.88,0.000137,2]
[420135130,1775707844483,-156.5680624,0.00013712,2]
[420135131,1775707844494,-680.0,0.00013734,2]
[420135132,1775707844504,-152.0,0.00013776,10]
[420135133,1775707844515,-680.0,0.00013787,2]
[420135134,1775707844525,-680.0,0.00013793,2]
[420135135,1775707844535,-200.5031,0.000138,2]
[420135136,1775707844545,-680.0,0.00013804,2]
[420135137,1775707844555,-447.242304,0.00013807,7]
[420135138,1775707844566,-1700.0,0.00013808,2]
[420135139,1775707844577,-150.47,0.00013821,2]
[420135140,1775707844587,-166.66,0.00013836,2]
[420135141,1775707844598,-200.0,0.00013836,2]
[420135142,1775707844608,-200.0,0.00013836,2]
[420135143,1775707844618,-200.0,0.00013836,2]
[420135144,1775707844629,-680.0,0.00013867,2]
[420135145,1775707844639,-254.05626601,0.00013877,2]
[420135146,1775707844649,-155.25198367,0.00013888,2]
[420135147,1775707844660,-2000.0,0.00013899,2]
[420135148,1775707844670,-194.47168047,0.00013899,2]
[420135149,1775707844681,-152.0,0.00013907,2]
[420135150,1775707844691,-22919.96568315,0.0001394,2]
[420135151,1775707844702,-680.0,0.00013941,2]
[420135152,1775707844712,-4632.11842333,0.0001395,2]
[420135153,1775707844722,-150.0,0.00013973,2]
[420135154,1775707844732,-150.0,0.00013973,2]
[420135155,1775707844743,-166.66,0.00013973,2]
[420135156,1775707844754,-786.15,0.00013973,2]
[420135157,1775707844765,-986.05,0.00013973,2]
[420135158,1775707844775,-200.0,0.00013974,2]
[420135159,1775707844786,-200.0,0.00013974,2]
[420135160,1775707844797,-200.0,0.00013974,2]
[420135161,1775707844807,-200.0,0.00013986,2]
[420135162,1775707844817,-1377.42282659,0.00013986,2]
[420135163,1775707844828,-609.58510414,0.00013986,2]
[420135164,1775707844838,-201.93286099,0.00013986,2]
[420135165,1775707844849,-680.0,0.00013991,2]
[420135166,1775707844860,-1600.0,0.00013991,2]
[420135167,1775707844871,-301.33796977,0.00013999,2]
[420135168,1775707844890,-209.398029,0.00014,2]
[420135169,1775707844905,-170.59,0.00014009,2]
[420135170,1775707844916,-350.0,0.00014012,2]
[420135171,1775707844927,-680.0,0.00014013,2]
[420135172,1775707844938,-500.0,0.00014039,2]
[420135173,1775707844949,-500.0,0.00014039,2]
[420135174,1775707844964,-500.0,0.00014039,2]
[420135175,1775707844975,-509.11396522,0.00014039,2]
[420135176,1775707844987,-502.4478995,0.00014039,2]
[420135177,1775707844998,-500.0,0.00014039,2]
[420135178,1775707845008,-500.0,0.00014039,2]
[420135179,1775707845018,-500.0,0.00014039,2]
[420135180,1775707845029,-500.0,0.00014039,2]
[420135181,1775707845039,-500.0,0.00014039,2]
[420135182,1775707845050,-3292.0,0.00014043,2]
[420135183,1775707845062,-1793.0,0.00014067,2]
[420135184,1775707845072,-502.0,0.0001407,2]
[420135185,1775707845084,-680.0,0.00014082,2]
[420135186,1775707845095,-662.77616733,0.00014089,4]
[420135187,1775707845105,-151.0,0.00014089,2]
[420135188,1775707845116,-25410.0057916,0.00014089,2]
[420135189,1775707845126,-1831.9448831,0.00014089,2]
[420135190,1775707845137,-2793.5353616,0.00014089,2]
[420135191,1775707845148,-2000.0,0.00014099,2]
[420135192,1775707845158,-160.0,0.00014104,2]
[420135193,1775707845169,-160.0,0.00014104,2]
[420135194,1775707845180,-166.66,0.0001411,2]
[420135195,1775707845190,-200.0,0.00014114,2]
[420135196,1775707845200,-200.0,0.00014114,2]
[420135197,1775707845211,-200.0,0.00014114,2]
[420135198,1775707845221,-736.0,0.0001412,2]
[420135199,1775707845231,-2968.0,0.00014121,2]
[420135200,1775707845241,-367.0,0.00014136,3]
[420135201,1775707845252,-152.0,0.00014138,11]
[420135202,1775707845262,-265.90080733,0.00014199,2]
[420135203,1775707845273,-150.47,0.00014206,2]
[420135204,1775707845284,-500.0,0.00014216,2]
[420135205,1775707845294,-490.0,0.00014216,2]
[420135206,1775707845304,-500.0,0.00014216,2]
[420135207,1775707845315,-500.0,0.00014216,2]
[420135208,1775707845325,-500.0,0.00014216,2]
[420135209,1775707845335,-500.0,0.00014246,2]
[420135210,1775707845346,-634.77288001,0.00014246,2]
[420135211,1775707845357,-500.0,0.00014246,2]
[420135212,1775707845368,-166.66,0.00014247,2]
[420135213,1775707845378,-150.0,0.00014247,2]
[420135214,1775707845389,-150.0,0.00014247,2]
[420135215,1775707845399,-786.15,0.00014247,2]
[420135216,1775707845410,-986.05,0.00014247,2]
[420135217,1775707845421,-200.0,0.00014255,2]
[420135218,1775707845431,-200.0,0.00014255,2]
[420135219,1775707845442,-200.0,0.00014255,2]
[420135220,1775707845458,-180.97283409,0.00014255,2]
[420135221,1775707845469,-350.0,0.00014296,2]
[420135222,1775707845480,-2000.0,0.00014299,2]
[420135223,1775707845490,-500.0,0.00014311,2]
[420135224,1775707845500,-500.0,0.00014311,2]
[420135225,1775707845511,-3869.0,0.00014321,2]
[420135226,1775707845522,-500.0,0.00014355,2]
[420135227,1775707845532,-500.0,0.00014372,2]
[420135228,1775707845543,-500.0,0.00014373,2]
[420135229,1775707845554,-500.0,0.00014373,2]
[420135230,1775707845564,-500.0,0.00014379,2]
[420135231,1775707845575,-500.0,0.00014379,2]
[420135232,1775707845585,-1553.96,0.00014384,2]
[420135233,1775707845596,-166.66,0.00014384,2]
[420135234,1775707845607,-1509.31229783,0.0001439,2]
[420135235,1775707845617,-500.0,0.00014399,2]
[420135236,1775707845629,-1573.0,0.000144,2]
[420135237,1775707845641,-1573.0,0.000144,2]
[420135238,1775707845652,-1573.0,0.000144,2]
[420135239,1775707845663,-162.0,0.000144,2]
[420135240,1775707845674,-156.5680624,0.00014441,2]
[420135241,1775707845685,-156.73369052,0.00014442,2]
[420135242,1775707845696,-350.0,0.00014446,2]
[420135243,1775707845711,-1739.0,0.00014451,2]
[420135244,1775707845721,-5669.7386616,0.00014454,2]
[420135245,1775707845734,-408.7621551,0.00014454,2]
[420135246,1775707845746,-623.3219926,0.00014454,2]
[420135247,1775707845757,-2000.0,0.00014499,2]
[420135248,1775707845767,-152.0,0.000145,12]
[420135249,1775707845778,-155.64852211,0.000145,5]
[420135250,1775707845789,-152.0,0.000145,5]
[420135251,1775707845810,-220.89129981,0.00014518,2]
[420135252,1775707845833,-786.15,0.00014521,2]
[420135253,1775707845850,-986.05,0.00014521,2]
[420135254,1775707845872,-623.58710448,0.00014533,2]
[420135255,1775707845883,-599.60298507,0.00014533,2]
[420135256,1775707845894,-200.0,0.00014534,2]
[420135257,1775707845906,-1428.38747117,0.00014534,2]
[420135258,1775707845917,-209.40437684,0.00014534,2]
[420135259,1775707845928,-351.0,0.00014536,4]
[420135260,1775707845939,-168.0,0.00014555,2]
[420135261,1775707845951,-446.0904938,0.0001457,2]
[420135262,1775707845966,-367.0,0.00014573,3]
[420135263,1775707845977,-158.63,0.000146,2]
[420135264,1775707845988,-306.0,0.000146,2]
[420135265,1775707846001,-1000.0,0.000146,2]
[420135266,1775707846012,-313.0,0.000146,2]
[420135267,1775707846029,-200.0,0.000146,2]
[420135268,1775707846046,-500.16597557,0.00014613,2]
[420135269,1775707846058,-500.0,0.00014613,2]
[420135270,1775707846069,-500.0,0.00014613,2]
[420135271,1775707846080,-500.0,0.00014613,2]
[420135272,1775707846095,-500.0,0.00014614,2]
[420135273,1775707846107,-500.0,0.00014614,2]
[420135274,1775707846118,-500.0,0.00014614,2]
[420135275,1775707846129,-3869.0,0.00014618,2]
[420135276,1775707846142,-479.51193057,0.00014635,2]
[420135277,1775707846153,-43095.7351465,0.00014662,2]
[420135278,1775707846165,-43095.7351466,0.00014662,2]
[420135279,1775707846175,-151.0,0.00014662,2]
[420135280,1775707846186,-151.0,0.00014662,2]
[420135281,1775707846196,-151.0,0.00014662,2]
[420135282,1775707846207,-151.0,0.00014662,2]
[420135283,1775707846217,-151.0,0.00014662,2]
[420135284,1775707846227,-151.0,0.00014662,2]
[420135285,1775707846238,-151.0,0.00014662,2]
[420135286,1775707846249,-151.0,0.00014662,2]
[420135287,1775707846260,-306.931056,0.00014662,2]
[420135288,1775707846271,-151.0,0.00014662,2]
[420135289,1775707846282,-306.931056,0.00014662,2]
[420135290,1775707846293,-306.931056,0.00014662,2]
[420135291,1775707846304,-306.931056,0.00014662,2]
[420135292,1775707846315,-151.0,0.00014662,2]
[420135293,1775707846325,-151.0,0.00014662,2]
[420135294,1775707846336,-151.0,0.00014662,2]
[420135295,1775707846346,-151.0,0.00014662,2]
[420135296,1775707846360,-151.0,0.00014662,2]
[420135297,1775707846370,-151.0,0.00014662,2]
[420135298,1775707846383,-154.635792,0.00014662,2]
[420135299,1775707846395,-239.625133,0.00014662,2]
[420135300,1775707846406,-151.0,0.00014662,2]
[420135301,1775707846417,-239.625133,0.00014662,2]
[420135302,1775707846429,-239.625133,0.00014662,2]
[420135303,1775707846441,-239.625133,0.00014662,2]
[420135304,1775707846451,-151.0,0.00014662,2]
[420135305,1775707846463,-151.0,0.00014662,2]
[420135306,1775707846475,-151.0,0.00014662,2]
[420135307,1775707846488,-170.656032,0.00014662,2]
[420135308,1775707846499,-170.656032,0.00014662,2]
[420135309,1775707846510,-170.656032,0.00014662,2]
[420135310,1775707846520,-212.276854,0.00014662,2]
[420135311,1775707846532,-170.656032,0.00014662,2]
[420135312,1775707846543,-212.276854,0.00014662,2]
[420135313,1775707846554,-212.276854,0.00014662,2]
[420135314,1775707846565,-151.0,0.00014662,2]
[420135315,1775707846576,-212.276854,0.00014662,2]
[420135316,1775707846587,-151.0,0.00014662,2]
[420135317,1775707846598,-151.0,0.00014662,2]
[420135318,1775707846609,-244.401806,0.00014662,2]
[420135319,1775707846620,-151.0,0.00014662,2]
[420135320,1775707847105,-151.0,0.00014662,2]
[420135321,1775707847116,-151.0,0.00014662,2]
[420135322,1775707847127,-151.0,0.00014662,2]
[420135323,1775707847139,-151.0,0.00014662,2]
[420135324,1775707847150,-151.0,0.00014662,2]
[420135325,1775707847162,-151.0,0.00014662,2]
[420135326,1775707847173,-151.0,0.00014662,2]
[420135327,1775707847195,-185.827137,0.00014662,2]
[420135328,1775707847213,-185.827137,0.00014662,2]
[420135329,1775707847226,-185.827137,0.00014662,2]
[420135330,1775707847237,-185.827137,0.00014662,2]
[420135331,1775707847249,-151.0,0.00014662,2]
[420135332,1775707847261,-151.0,0.00014662,2]
[420135333,1775707847273,-151.0,0.00014662,2]
[420135334,1775707847284,-151.0,0.00014662,2]
[420135335,1775707847296,-151.0,0.00014662,2]
[420135336,1775707847307,-277.22326,0.00014662,2]
[420135337,1775707847319,-200.39974,0.00014662,2]
[420135338,1775707847330,-151.0,0.00014662,2]
[420135339,1775707847341,-151.0,0.00014662,2]
[420135340,1775707847352,-200.39974,0.00014662,2]
[420135341,1775707847363,-151.0,0.00014662,2]
[420135343,1775707847374,-200.39974,0.00014662,2]
[420135345,1775707847385,-151.0,0.00014662,2]
[420135347,1775707847396,-151.0,0.00014662,2]
[420135349,1775707847407,-151.0,0.00014662,2]
[420135352,1775707847423,-200.39974,0.00014662,2]
[420135354,1775707847438,-151.0,0.00014662,2]
[420135356,1775707847450,-151.0,0.00014662,2]
[420135358,1775707847462,-151.0,0.00014662,2]
[420135359,1775707847478,-151.0,0.00014662,2]
[420135360,1775707847491,-151.0,0.00014662,2]
[420135361,1775707847505,-151.0,0.00014662,2]
[420135362,1775707847525,-238.149107,0.00014662,2]
[420135363,1775707847536,-152.342311,0.00014662,2]
[420135364,1775707847547,-151.0,0.00014662,2]
[420135365,1775707847564,-445.95135,0.00014662,2]
[420135366,1775707847580,-152.342311,0.00014662,2]
[420135367,1775707847608,-445.95135,0.00014662,2]
[420135368,1775707847624,-152.342311,0.00014662,2]
[420135369,1775707847639,-152.342311,0.00014662,2]
[420135370,1775707847649,-445.95135,0.00014662,2]
[420135371,1775707847662,-445.95135,0.00014662,2]
[420135372,1775707847685,-151.0,0.00014662,2]
[420135373,1775707847700,-324.491261,0.00014662,2]
[420135374,1775707847711,-324.491261,0.00014662,2]
[420135375,1775707847721,-516.638369,0.00014662,2]
[420135376,1775707847744,-324.491261,0.00014662,2]
[420135377,1775707847755,-151.0,0.00014662,2]
[420135378,1775707847765,-516.638369,0.00014662,2]
[420135379,1775707847776,-324.491261,0.00014662,2]
[420135380,1775707847786,-151.0,0.00014662,2]
[420135381,1775707847797,-151.0,0.00014662,2]
[420135382,1775707847807,-516.638369,0.00014662,2]
[420135383,1775707847819,-151.0,0.00014662,2]
[420135384,1775707847830,-151.0,0.00014662,2]
[420135385,1775707847845,-151.0,0.00014662,2]
[420135386,1775707847856,-516.638369,0.00014662,2]
[420135387,1775707847869,-358.263461,0.00014662,2]
[420135388,1775707847879,-151.0,0.00014662,2]
[420135389,1775707847890,-290.115354,0.00014662,2]
[420135390,1775707847900,-358.263461,0.00014662,2]
[420135391,1775707847912,-151.0,0.00014662,2]
[420135392,1775707847923,-151.0,0.00014662,2]
[420135393,1775707847934,-151.0,0.00014662,2]
[420135394,1775707847947,-444.242263,0.00014662,2]
[420135395,1775707847959,-358.263461,0.00014662,2]
[420135396,1775707847975,-151.0,0.00014662,2]
[420135397,1775707847987,-151.0,0.00014662,2]
[420135398,1775707847997,-151.0,0.00014662,2]
[420135399,1775707848008,-444.242263,0.00014662,2]
[420135400,1775707848018,-358.263461,0.00014662,2]
[420135401,1775707848028,-225.529868,0.00014662,2]
[420135402,1775707848039,-151.0,0.00014662,2]
[420135403,1775707848050,-444.242263,0.00014662,2]
[420135404,1775707848060,-444.242263,0.00014662,2]
[420135405,1775707848071,-151.0,0.00014662,2]
[420135406,1775707848082,-151.0,0.00014662,2]
[420135407,1775707848092,-154.759491,0.00014662,2]
[420135408,1775707848102,-151.0,0.00014662,2]
[420135409,1775707848113,-507.14513,0.00014662,2]
[420135410,1775707848124,-151.0,0.00014662,2]
[420135411,1775707848134,-507.14513,0.00014662,2]
[420135412,1775707848145,-507.14513,0.00014662,2]
[420135413,1775707848156,-507.14513,0.00014662,2]
[420135414,1775707848167,-151.0,0.00014662,2]
[420135415,1775707848177,-151.0,0.00014662,2]
[420135416,1775707848188,-257.380307,0.00014662,2]
[420135417,1775707848198,-257.380307,0.00014662,2]
[420135418,1775707848209,-257.380307,0.00014662,2]
[420135419,1775707848219,-257.380307,0.00014662,2]
[420135420,1775707848230,-643.628678,0.00014662,2]
[420135421,1775707848241,-643.628678,0.00014662,2]
[420135422,1775707848252,-156.767948,0.00014662,2]
[420135423,1775707848263,-314.095772,0.00014662,2]
[420135424,1775707848274,-509.32745,0.00014662,2]
[420135425,1775707848286,-643.628678,0.00014662,2]
[420135426,1775707848297,-156.767948,0.00014662,2]
[420135427,1775707848316,-314.095772,0.00014662,2]
[420135428,1775707848328,-509.32745,0.00014662,2]
[420135429,1775707848339,-643.628678,0.00014662,2]
[420135430,1775707848350,-156.767948,0.00014662,2]
[420135431,1775707848360,-314.095772,0.00014662,2]
[420135432,1775707848378,-509.32745,0.00014662,2]
[420135433,1775707848389,-156.767948,0.00014662,2]
[420135434,1775707848399,-314.095772,0.00014662,2]
[420135435,1775707848409,-509.32745,0.00014662,2]
[420135436,1775707848420,-151.0,0.00014662,2]
[420135437,1775707848430,-151.0,0.00014662,2]
[420135438,1775707848441,-151.0,0.00014662,2]
[420135439,1775707848452,-151.0,0.00014662,2]
[420135440,1775707848464,-151.0,0.00014662,2]
[420135441,1775707848680,-151.0,0.00014662,2]
[420135442,1775707848691,-151.0,0.00014662,2]
[420135443,1775707848703,-151.0,0.00014662,2]
[420135444,1775707848715,-389.508035,0.00014662,2]
[420135445,1775707848725,-151.0,0.00014662,2]
[420135446,1775707848736,-304.28385,0.00014662,2]
[420135447,1775707848748,-151.0,0.00014662,2]
[420135448,1775707848761,-389.508035,0.00014662,2]
[420135449,1775707848772,-304.28385,0.00014662,2]
[420135450,1775707848783,-304.28385,0.00014662,2]
[420135451,1775707848795,-389.508035,0.00014662,2]
[420135452,1775707848806,-304.28385,0.00014662,2]
[420135453,1775707848817,-389.508035,0.00014662,2]
[420135454,1775707848828,-151.0,0.00014662,2]
[420135455,1775707848840,-768.264917,0.00014662,2]
[420135456,1775707848851,-768.264917,0.00014662,2]
[420135457,1775707848862,-151.0,0.00014662,2]
[420135458,1775707848873,-768.264917,0.00014662,2]
[420135459,1775707848884,-228.517343,0.00014662,2]
[420135460,1775707848894,-151.0,0.00014662,2]
[420135461,1775707848905,-768.264917,0.00014662,2]
[420135462,1775707848915,-500.47002932,0.00014673,2]
[420135463,1775707848926,-501.77521858,0.00014673,2]
[420135464,1775707848937,-500.34563558,0.00014673,2]
[420135465,1775707848949,-500.0,0.00014673,2]
[420135466,1775707848959,-500.0,0.00014673,2]
[420135467,1775707848970,-500.0,0.00014673,2]
[420135468,1775707848981,-500.0,0.00014673,2]
[420135469,1775707848992,-500.0,0.00014673,2]
[420135470,1775707849004,-500.0,0.00014673,2]
[420135471,1775707849014,-500.0,0.00014673,2]
[420135472,1775707849024,-500.0,0.00014673,2]
[420135473,1775707849036,-500.0,0.00014673,2]
[420135474,1775707849047,-500.0,0.00014673,2]
[420135475,1775707849058,-500.0,0.00014673,2]
[420135476,1775707849068,-500.0,0.00014673,2]
[420135477,1775707849078,-500.0,0.00014673,2]
[420135478,1775707849088,-500.0,0.00014673,2]
[420135479,1775707849099,-500.0,0.00014673,2]
[420135480,1775707849109,-500.0,0.00014673,2]
[420135481,1775707849120,-500.0,0.00014673,2]
[420135482,1775707849130,-500.0,0.00014673,2]
[420135483,1775707849140,-500.0,0.00014673,2]
[420135484,1775707849151,-611.14534925,0.00014673,2]
[420135485,1775707849162,-500.0,0.00014673,2]
[420135486,1775707849172,-502.81380438,0.00014673,2]
[420135487,1775707849183,-292.82446066,0.00014673,2]
[420135488,1775707849193,-163.89500602,0.00014673,2]
[420135489,1775707849203,-500.0,0.00014673,2]
[420135490,1775707849213,-157.60106223,0.00014676,2]
[420135491,1775707849223,-377.03736185,0.00014687,2]
[420135492,1775707849233,-2000.0,0.00014699,2]
[420135493,1775707849242,-150.47,0.00014715,2]
[420135494,1775707849252,-1573.0,0.0001472,2]
[420135495,1775707849262,-1573.0,0.0001472,2]
[420135496,1775707849272,-1573.0,0.0001472,2]
[420135497,1775707849282,-162.0,0.0001472,2]
[420135498,1775707849294,-162.0,0.0001472,2]
[420135499,1775707849304,-2937.31,0.0001473,2]
[420135500,1775707849315,-250.0,0.00014795,2]
[420135501,1775707849325,-786.15,0.00014795,2]
[420135502,1775707849336,-456.8,0.00014795,2]
[420135503,1775707849346,-191.0,0.00014795,2]
[420135504,1775707849357,-217.0,0.0001481,2]
[420135505,1775707849367,-200.0,0.0001481,2]
[420135506,1775707849378,-250.0,0.0001481,2]
[420135507,1775707849388,-250.0,0.0001481,2]
[420135508,1775707849399,-239.355,0.0001481,2]
[420135509,1775707849410,-209.532,0.0001481,2]
[420135510,1775707849420,-163.59,0.0001481,2]
[420135511,1775707849431,-250.0,0.0001481,2]
[420135512,1775707849441,-156.347,0.0001481,2]
[420135513,1775707849452,-193.677,0.0001481,2]
[420135514,1775707849462,-166.221,0.0001481,2]
[420135515,1775707849473,-215.062,0.0001481,2]
[420135516,1775707849483,-250.0,0.0001481,2]
[420135517,1775707849494,-240.446,0.0001481,2]
[420135518,1775707849504,-181.0,0.0001481,2]
[420135519,1775707849515,-1365.358,0.0001481,2]
[420135520,1775707849525,-622.754,0.0001481,2]
[420135521,1775707849535,-3532.699,0.0001481,2]
[420135522,1775707849546,-1047.0,0.0001481,2]
[420135523,1775707849556,-1341.493,0.0001481,2]
[420135524,1775707849566,-150.137,0.0001481,2]
[420135525,1775707849577,-1218.0,0.0001481,2]
[420135526,1775707849588,-926.335,0.0001481,2]
[420135527,1775707849598,-2471.0,0.0001481,2]
[420135528,1775707849609,-6023.0,0.0001481,2]
[420135529,1775707849619,-3773.0,0.0001481,2]
[420135530,1775707849630,-2000.0,0.0001481,2]
[420135531,1775707849640,-2000.0,0.0001481,2]
[420135532,1775707849650,-2000.0,0.0001481,2]
[420135533,1775707849661,-2000.0,0.0001481,2]
[420135534,1775707849671,-2000.0,0.0001481,2]
[420135535,1775707849682,-2000.0,0.0001481,2]
[420135536,1775707849692,-2000.0,0.0001481,2]
[420135537,1775707849703,-2000.0,0.0001481,2]
[420135538,1775707849713,-2000.0,0.0001481,2]
[420135539,1775707849724,-2084.0,0.0001481,2]
[420135540,1775707849734,-9526.695951,0.0001481,2]
[420135541,1775707849745,-9526.695951,0.0001481,2]
[420135542,1775707849755,-9526.695951,0.0001481,2]
[420135543,1775707849765,-9526.695951,0.0001481,2]
[420135544,1775707849775,-151.0,0.0001481,2]
[420135545,1775707849787,-160.026427,0.0001481,2]
[420135546,1775707849797,-160.026427,0.0001481,2]
[420135547,1775707849807,-156.115211,0.0001481,2]
[420135548,1775707849818,-160.026427,0.0001481,2]
[420135549,1775707849829,-188.631978,0.0001481,2]
[420135550,1775707849839,-156.115211,0.0001481,2]
[420135551,1775707849849,-151.0,0.0001481,2]
[420135552,1775707849859,-160.026427,0.0001481,2]
[420135553,1775707849870,-188.631978,0.0001481,2]
[420135554,1775707849880,-156.115211,0.0001481,2]
[420135555,1775707849890,-151.0,0.0001481,2]